fUST/lending_fUST_20240921
["ID","MTS","AMOUNT","RATE_DAILY","PERIOD"]
[338791166,1726915846147,-132.83658101,0.0001452,2]
[338791168,1726915846159,-500.0,0.0001452,2]
[338791170,1726915846170,-500.0,0.0001452,2]
[338791172,1726915846180,-500.0,0.0001452,2]
[338791174,1726915846191,-500.0,0.0001452,2]
[338791176,1726915846203,-500.0,0.0001452,2]
[338791178,1726915846212,-500.0,0.0001452,2]
[338791180,1726915846222,-500.0,0.0001452,2]
[338791182,1726915846232,-500.0,0.0001452,2]
[338791184,1726915846242,-404.45507518,0.0001452,2]
[338791186,1726915846251,-500.0,0.0001452,2]
[338791188,1726915846260,-417.254682,0.0001452,2]
[338791190,1726915846270,-249.75813083,0.0001452,2]
[338791192,1726915846283,-250.24186917,0.0001452,2]
[338791194,1726915846292,-417.254682,0.0001452,2]
[338791196,1726915846301,-151.0,0.0001452,2]
[338791198,1726915846311,-423.2547758,0.0001452,2]
[338791224,1726915846546,-76.7452242,0.0001452,2]
[338791226,1726915846555,-500.0,0.00014521,2]
[338791228,1726915846565,-9.9305005,0.00014521,2]
[338791231,1726915846591,-500.0,0.00014246,2]
[338791233,1726915846600,-64.24,0.00014521,2]
[338791235,1726915846612,-548.6294995,0.00014521,2]
[338791237,1726915846621,-500.0,0.00014521,2]
[338791239,1726915846631,-500.0,0.00014521,2]
[338791241,1726915846641,-500.0,0.00014521,2]
[338791243,1726915846650,-330.89,0.00014521,2]
[338791246,1726915846660,-648.19,0.00014521,2]
[338791248,1726915846669,-759.74,0.00014521,2]
[338791249,1726915846678,-288.61,0.00014521,2]
[338791251,1726915846687,-500.0,0.00014521,2]
[338791254,1726915846697,-500.0,0.00014521,2]
[338791256,1726915846707,-500.0,0.00014521,2]
[338791258,1726915846716,-353.32,0.00014521,2]
[338791260,1726915846726,-500.0,0.00014521,2]
[338791262,1726915846734,-420.19,0.00014521,2]
[338791264,1726915846743,-500.0,0.00014521,2]
[338791265,1726915846753,-433.15,0.00014521,2]
[338791268,1726915846762,-500.0,0.00014521,2]
[338791270,1726915846772,-500.0,0.00014521,2]
[338791272,1726915846781,-500.0,0.00014521,2]
[338791273,1726915846790,-500.0,0.00014521,2]
[338791275,1726915846800,-500.0,0.00014521,2]
[338791277,1726915846809,-500.0,0.00014521,2]
[338791280,1726915846820,-500.0,0.00014521,2]
[338791282,1726915846833,-95.4813476,0.00014521,2]
[338791284,1726915846845,-404.5186524,0.00014521,2]
[338791286,1726915846854,-500.0,0.00014521,2]
[338791288,1726915846863,-321.81905713,0.00014521,2]
[338791290,1726915846872,-500.0,0.00014521,2]
[338791292,1726915846881,-500.0,0.00014521,2]
[338791294,1726915846891,-563.95,0.00014521,2]
[338791296,1726915846900,-1460.7,0.00014521,2]
[338791298,1726915846909,-500.0,0.00014521,2]
[338791300,1726915846919,-500.0,0.00014521,2]
[338791302,1726915846930,-500.0,0.00014521,2]
[338791304,1726915846940,-289.1148186,0.00014521,2]
[338791306,1726915846949,-500.0,0.00014521,2]
[338791308,1726915846958,-500.0,0.00014521,2]
[338791310,1726915846967,-500.0,0.00014521,2]
[338791312,1726915846976,-464.31,0.00014521,2]
[338791314,1726915846986,-204.95,0.00014521,2]
[338791316,1726915846995,-327.2,0.00014521,2]
[338791318,1726915847004,-500.0,0.00014521,2]
[338791320,1726915847014,-257.07487702,0.00014521,2]
[338791322,1726915847027,-34.24512298,0.00014521,2]
[338791325,1726915847038,-362.74,0.00014521,2]
[338791327,1726915847048,-316.62,0.00014521,2]
[338791329,1726915847057,-500.0,0.00014521,2]
[338791331,1726915847066,-500.0,0.00014521,2]
[338791333,1726915847077,-200.88066063,0.00014521,2]
[338791340,1726915847134,-500.0,0.00014246,2]
[338791342,1726915847145,-56.36933937,0.00014521,2]
[338791344,1726915847156,-500.0,0.00014521,2]
[338791346,1726915847165,-500.0,0.00014521,2]
[338791348,1726915847175,-500.0,0.00014521,2]
[338791350,1726915847184,-859.026194,0.00014521,2]
[338791351,1726915847194,-500.0,0.00014521,2]
[338791353,1726915847203,-601.04,0.00014521,2]
[338791355,1726915847213,-857.49112833,0.00014521,2]
[338791358,1726915847226,-1.53506567,0.00014521,2]
[338791359,1726915847235,-500.0,0.00014521,2]
[338791362,1726915847245,-219.05,0.00014521,2]
[338791363,1726915847254,-151.0,0.00014521,2]
[338791366,1726915847263,-151.0,0.00014521,2]
[338791368,1726915847274,-181.40300415,0.00014521,2]
[338791370,1726915847287,-335.11788326,0.00014521,2]
[338791372,1726915847301,-102.29911259,0.00014521,2]
[338791375,1726915847312,-1506.546861,0.00014521,2]
[338791377,1726915847322,-500.0,0.00014521,2]
[338791379,1726915847335,-151.0,0.00014521,2]
[338791381,1726915847346,-500.0,0.00014521,2]
[338791383,1726915847355,-720.390526,0.00014521,2]
[338791385,1726915847365,-1506.546861,0.00014521,2]
[338791387,1726915847374,-720.390526,0.00014521,2]
[338791389,1726915847385,-500.0,0.00014521,2]
[338791391,1726915847395,-500.0,0.00014521,2]
[338791393,1726915847406,-500.0,0.00014521,2]
[338791395,1726915847415,-479.58,0.00014521,2]
[338791397,1726915847424,-500.0,0.00014521,2]
[338791399,1726915847434,-500.0,0.00014521,2]
[338791401,1726915847443,-809.755572,0.00014521,2]
[338791403,1726915847453,-583.473285,0.00014521,2]
[338791405,1726915847462,-743.33,0.00014521,2]
[338791407,1726915847471,-809.755572,0.00014521,2]
[338791409,1726915847480,-583.473285,0.00014521,2]
[338791411,1726915847490,-546.82,0.00014521,2]
[338791413,1726915847500,-500.0,0.00014521,2]
[338791415,1726915847509,-200.0,0.00014521,2]
[338791417,1726915847518,-500.0,0.00014521,2]
[338791419,1726915847527,-1361.665813,0.00014521,2]
[338791420,1726915847536,-1361.665813,0.00014521,2]
[338791421,1726915847545,-151.0,0.00014522,2]
[338791422,1726915847555,-151.0,0.00014522,2]
[338791423,1726915847565,-151.0,0.00014522,2]
[338791424,1726915847575,-151.0,0.00014522,2]
[338791425,1726915847584,-151.0,0.00014522,2]
[338791426,1726915847593,-151.0,0.00014522,2]
[338791427,1726915847602,-151.0,0.00014522,2]
[338791428,1726915847612,-151.0,0.00014522,2]
[338791429,1726915847621,-151.0,0.00014522,2]
[338791430,1726915847630,-151.0,0.00014522,2]
[338791432,1726915847639,-291.219003,0.00014522,2]
[338791434,1726915847649,-715.05678,0.00014522,2]
[338791436,1726915847658,-363.44964,0.00014522,2]
[338791438,1726915847667,-715.05678,0.00014522,2]
[338791440,1726915847676,-363.44964,0.00014522,2]
[338791442,1726915847685,-151.0,0.00014522,2]
[338791444,1726915847694,-381.675198,0.00014522,2]
[338791446,1726915847703,-381.675198,0.00014522,2]
[338791448,1726915847713,-277.884752,0.00014522,2]
[338791450,1726915847723,-277.884752,0.00014522,2]
[338791452,1726915847732,-151.0,0.00014522,2]
[338791454,1726915847741,-151.0,0.00014522,2]
[338791456,1726915847750,-463.398658,0.00014522,2]
[338791458,1726915847759,-463.398658,0.00014522,2]
[338791460,1726915847769,-221.67222,0.00014522,2]
[338791462,1726915847778,-221.67222,0.00014522,2]
[338791464,1726915847788,-151.0,0.00014522,2]
[338791466,1726915847797,-151.0,0.00014522,2]
[338791468,1726915847806,-262.873662,0.00014522,2]
[338791470,1726915847815,-262.873662,0.00014522,2]
[338791472,1726915847827,-151.0,0.00014522,2]
[338791474,1726915847841,-151.0,0.00014522,2]
[338791476,1726915847851,-1640.091738,0.00014522,2]
[338791478,1726915847860,-1640.091738,0.00014522,2]
[338791479,1726915847869,-417.254682,0.00014522,2]
[338791481,1726915847878,-417.254682,0.00014522,2]
[338791483,1726915847887,-151.0,0.00014522,2]
[338791485,1726915847897,-38600.0506671,0.00014522,2]
[338791488,1726915847906,-47688.0557913,0.00014522,2]
[338791490,1726915847916,-390.88,0.00014532,2]
[338791492,1726915847926,-190.23,0.00014532,2]
[338791494,1726915847935,-210.58,0.00014532,2]
[338791496,1726915847945,-161.14,0.00014532,2]
[338791498,1726915847954,-500.0,0.00014532,2]
[338791500,1726915847963,-405.13,0.00014532,2]
[338791502,1726915847972,-500.0,0.00014532,2]
[338791503,1726915847981,-532.46,0.00014532,2]
[338791505,1726915847990,-500.0,0.00014532,2]
[338791507,1726915847999,-500.0,0.00014532,2]
[338791509,1726915848008,-500.0,0.00014532,2]
[338791511,1726915848017,-218.11,0.00014532,2]
[338791513,1726915848027,-500.0,0.00014532,2]
[338791515,1726915848036,-372.05,0.00014532,2]
[338791517,1726915848046,-500.0,0.00014532,2]
[338791519,1726915848055,-500.0,0.00014532,2]
[338791521,1726915848065,-649.98,0.00014532,2]
[338791523,1726915848077,-500.0,0.00014532,2]
[338791526,1726915848088,-599.90742919,0.00014532,2]
[338791528,1726915848097,-488.11,0.00014532,2]
[338791530,1726915848107,-500.0,0.00014532,2]
[338791532,1726915848117,-640.23,0.00014532,2]
[338791534,1726915848126,-500.0,0.00014532,2]
[338791535,1726915848136,-500.0,0.00014532,2]
[338791537,1726915848147,-500.0,0.00014532,2]
[338791539,1726915848157,-634.18,0.00014532,2]
[338791541,1726915848167,-500.0,0.00014532,2]
[338791543,1726915848176,-500.0,0.00014532,2]
[338791545,1726915848185,-500.0,0.00014532,2]
[338791547,1726915848196,-500.0,0.00014532,2]
[338791549,1726915848205,-500.0,0.00014532,2]
[338791551,1726915848215,-500.0,0.00014532,2]
[338791553,1726915848225,-500.0,0.00014532,2]
[338791555,1726915848239,-896.39,0.00014532,2]
[338791557,1726915848250,-500.0,0.00014532,2]
[338791559,1726915848259,-500.0,0.00014532,2]
[338791561,1726915848269,-500.0,0.00014532,2]
[338791563,1726915848277,-500.0,0.00014532,2]
[338791565,1726915848287,-500.0,0.00014532,2]
[338791567,1726915848298,-516.09,0.00014532,2]
[338791569,1726915848308,-500.0,0.00014532,2]
[338791571,1726915848318,-500.0,0.00014532,2]
[338791573,1726915848329,-556.87,0.00014532,2]
[338791575,1726915848338,-500.0,0.00014532,2]
[338791577,1726915848348,-500.0,0.00014532,2]
[338791579,1726915848358,-500.0,0.00014532,2]
[338791581,1726915848367,-500.0,0.00014532,2]
[338791583,1726915848377,-500.0,0.00014532,2]
[338791585,1726915848386,-612.88,0.00014532,2]
[338791587,1726915848395,-500.0,0.00014532,2]
[338791589,1726915848404,-500.0,0.00014532,2]
[338791591,1726915848414,-500.0,0.00014532,2]
[338791593,1726915848424,-500.0,0.00014532,2]
[338791595,1726915848434,-500.0,0.00014532,2]
[338791597,1726915848444,-500.0,0.00014532,2]
[338791599,1726915848454,-500.0,0.00014532,2]
[338791601,1726915848463,-500.0,0.00014532,2]
[338791603,1726915848473,-500.0,0.00014532,2]
[338791605,1726915848482,-500.0,0.00014532,2]
[338791607,1726915848491,-500.0,0.00014532,2]
[338791609,1726915848500,-340.56,0.00014532,2]
[338791611,1726915848509,-500.0,0.00014532,2]
[338791613,1726915848518,-500.0,0.00014532,2]
[338791615,1726915848528,-500.0,0.00014532,2]
[338791617,1726915848537,-500.0,0.00014532,2]
[338791618,1726915848546,-500.0,0.00014532,2]
[338791621,1726915848556,-500.0,0.00014532,2]
[338791623,1726915848566,-500.0,0.00014532,2]
[338791624,1726915848576,-500.0,0.00014532,2]
[338791626,1726915848586,-1206.84,0.00014532,2]
[338791628,1726915848595,-227.25158115,0.00014532,2]
[338791630,1726915848604,-500.0,0.00014532,2]
[338791632,1726915848614,-500.0,0.00014532,2]
[338791634,1726915848623,-500.0,0.00014532,2]
[338791636,1726915848631,-500.0,0.00014532,2]
[338791638,1726915848641,-500.0,0.00014532,2]
[338791640,1726915848650,-500.0,0.00014532,2]
[338791642,1726915848659,-500.0,0.00014532,2]
[338791644,1726915848669,-500.0,0.00014532,2]
[338791646,1726915848679,-500.0,0.00014532,2]
[338791648,1726915848688,-500.0,0.00014532,2]
[338791650,1726915848698,-500.0,0.00014532,2]
[338791652,1726915848707,-500.0,0.00014532,2]
[338791654,1726915848718,-500.0,0.00014532,2]
[338791656,1726915848727,-500.0,0.00014532,2]
[338791658,1726915848737,-500.0,0.00014532,2]
[338791660,1726915848746,-280.97,0.00014532,2]
[338791662,1726915848756,-151.0,0.00014532,2]
[338791664,1726915848765,-151.0,0.00014532,2]
[338791666,1726915848775,-151.0,0.00014532,2]
[338791668,1726915848786,-189.690337,0.00014532,2]
[338791670,1726915848795,-454.76,0.00014532,2]
[338791672,1726915848805,-303.72,0.00014532,2]
[338791674,1726915848814,-262.353829,0.00014532,2]
[338791676,1726915848825,-500.0,0.00014532,2]
[338791678,1726915848834,-151.0,0.00014532,2]
[338791680,1726915848843,-151.0,0.00014532,2]
[338791682,1726915848852,-151.0,0.00014532,2]
[338791683,1726915848862,-2258.637503,0.00014532,2]
[338791686,1726915848871,-285.79898086,0.00014532,2]
[338791687,1726915848881,-500.0,0.00014532,2]
[338791690,1726915848892,-500.0,0.00014532,2]
[338791692,1726915848902,-502.33275546,0.00014532,2]
[338791694,1726915848912,-500.0,0.00014532,2]
[338791696,1726915848922,-500.0,0.00014532,2]
[338791698,1726915848932,-500.0,0.00014532,2]
[338791700,1726915848941,-859.026194,0.00014532,2]
[338791702,1726915848951,-859.026194,0.00014532,2]
[338791704,1726915848960,-151.0,0.00014532,2]
[338791706,1726915848969,-151.0,0.00014532,2]
[338791708,1726915848980,-1506.546861,0.00014532,2]
[338791710,1726915848989,-151.0,0.00014532,2]
[338791712,1726915848998,-720.390526,0.00014532,2]
[338791714,1726915849007,-1506.546861,0.00014532,2]
[338791716,1726915849017,-720.390526,0.00014532,2]
[338791718,1726915849026,-809.755572,0.00014532,2]
[338791720,1726915849035,-583.473285,0.00014532,2]
[338791722,1726915849045,-809.755572,0.00014532,2]
[338791724,1726915849054,-583.473285,0.00014532,2]
[338791726,1726915849065,-1361.665813,0.00014532,2]
[338791728,1726915849076,-1361.665813,0.00014532,2]
[338791730,1726915849086,-252.443761,0.00014533,2]
[338791732,1726915849095,-173.587693,0.00014533,2]
[338791734,1726915849105,-792.170673,0.00014533,2]
[338791736,1726915849114,-173.587693,0.00014533,2]
[338791738,1726915849124,-792.170673,0.00014533,2]
[338791740,1726915849133,-151.0,0.00014533,2]
[338791742,1726915849143,-151.0,0.00014533,2]
[338791744,1726915849156,-151.0,0.00014543,2]
[338791746,1726915849166,-524.43865157,0.00014543,2]
[338791748,1726915849175,-500.0,0.00014543,2]
[338791750,1726915849187,-500.0,0.00014543,2]
[338791752,1726915849196,-151.0,0.00014544,2]
[338791754,1726915849206,-151.0,0.00014544,2]
[338791756,1726915849215,-151.0,0.00014544,2]
[338791758,1726915849226,-155.878418,0.00014544,2]
[338791760,1726915849236,-155.878418,0.00014544,2]
[338791762,1726915849246,-1593.946368,0.00014544,2]
[338791764,1726915849255,-1593.946368,0.00014544,2]
[338791766,1726915849265,-500.0,0.00014573,2]
[338791768,1726915849275,-500.0,0.00014573,2]
[338791770,1726915849285,-500.0,0.00014573,2]
[338791772,1726915849294,-500.0,0.00014573,2]
[338791774,1726915849304,-160.11865743,0.00014573,2]
[338791776,1726915849314,-500.0,0.00014573,2]
[338791778,1726915849324,-500.0,0.00014573,2]
[338791780,1726915849333,-500.0,0.00014573,2]
[338791782,1726915849342,-500.0,0.00014573,2]
[338791784,1726915849351,-500.0,0.00014573,2]
[338791786,1726915849361,-500.0,0.00014573,2]
[338791788,1726915849371,-500.0,0.00014573,2]
[338791790,1726915849381,-500.0,0.00014573,2]
[338791792,1726915849392,-150.112233,0.000146,2]
[338791794,1726915849402,-153.0,0.000146,2]
[338791796,1726915849412,-150.112233,0.000147,2]
[338791798,1726915849422,-150.112233,0.000147,2]
[338791800,1726915849432,-411.7313822,0.000147,2]
[338791802,1726915849442,-411.7313822,0.000147,2]
[338791804,1726915849452,-822.693302,0.000147,2]
[338791806,1726915849461,-411.7313822,0.000147,2]
[338791808,1726915849471,-153.0,0.000147,2]
[338791810,1726915849481,-153.0,0.000147,2]
[338791812,1726915849491,-153.0,0.000147,2]
[338791814,1726915849500,-153.0,0.000147,2]
[338791816,1726915849510,-153.0,0.000147,2]
[338791818,1726915849520,-306.0,0.000147,2]
[338791819,1726915849529,-822.7692008,0.000147,2]
[338791822,1726915849540,-208.8866586,0.00014746,2]
[338791823,1726915849550,-213.2972398,0.00014746,2]
[338791826,1726915849560,-208.8866586,0.00014746,2]
[338791827,1726915849570,-208.8866586,0.00014746,2]
[338791830,1726915849581,-208.8866586,0.00014746,2]
[338791831,1726915849591,-208.8866586,0.00014746,2]
[338791833,1726915849600,-151.0,0.0001475,2]
[338791835,1726915849610,-277.884752,0.0001475,2]
[338791837,1726915849619,-277.884752,0.0001475,2]
[338791839,1726915849629,-151.0,0.0001475,2]
[338791841,1726915849638,-222.725278,0.0001475,2]
[338791843,1726915849648,-1237.2619524,0.0001475,2]
[338791845,1726915849657,-151.0,0.00014767,2]
[338791847,1726915849666,-151.0,0.00014767,2]
[338791849,1726915849676,-151.0,0.00014767,2]
[338791851,1726915849686,-151.0,0.00014767,2]
[338791853,1726915849696,-151.0,0.00014767,2]
[338791855,1726915849706,-151.0,0.00014767,2]
[338791857,1726915849715,-151.0,0.00014767,2]
[338791859,1726915849725,-279.470345,0.00014767,2]
[338791861,1726915849734,-151.0,0.00014767,2]
[338791863,1726915849743,-151.0,0.00014767,2]
[338791865,1726915849752,-715.05678,0.00014767,2]
[338791867,1726915849761,-363.44964,0.00014767,2]
[338791869,1726915849771,-715.05678,0.00014767,2]
[338791871,1726915849780,-363.44964,0.00014767,2]
[338791873,1726915849790,-381.675198,0.00014767,2]
[338791875,1726915849799,-381.675198,0.00014767,2]
[338791877,1726915849809,-463.398658,0.00014767,2]
[338791879,1726915849818,-463.398658,0.00014767,2]
[338791880,1726915849828,-221.67222,0.00014767,2]
[338791882,1726915849838,-221.67222,0.00014767,2]
[338791884,1726915849848,-151.0,0.00014767,2]
[338791887,1726915849857,-151.0,0.00014767,2]
[338791889,1726915849867,-262.873662,0.00014767,2]
[338791891,1726915849876,-262.873662,0.00014767,2]
[338791893,1726915849886,-151.0,0.00014767,2]
[338791895,1726915849896,-151.0,0.00014767,2]
[338791897,1726915849906,-1640.091738,0.00014767,2]
[338791899,1726915849915,-1640.091738,0.00014767,2]
[338791901,1726915849925,-228.6779883,0.00014767,2]
[338791902,1726915849935,-411.7313822,0.00014767,2]
[338791904,1726915849945,-411.7313822,0.00014767,2]
[338791906,1726915849955,-411.7313822,0.00014767,2]
[338791908,1726915849964,-411.7313822,0.00014767,2]
[338791910,1726915849974,-411.7313822,0.00014767,2]
[338791912,1726915849983,-411.7313822,0.00014767,2]
[338791913,1726915849993,-411.7313822,0.00014767,2]
[338791914,1726915850003,-411.7313822,0.00014767,2]
[338791915,1726915850013,-411.7313822,0.00014767,2]
[338791916,1726915850023,-411.7313822,0.00014767,2]
[338791917,1726915850032,-411.7313822,0.00014767,2]
[338791918,1726915850042,-411.7313822,0.00014767,2]
[338791919,1726915850051,-411.7313822,0.00014767,2]
[338791920,1726915850061,-411.7313822,0.00014767,2]
[338791921,1726915850071,-411.7313822,0.00014767,2]
[338791922,1726915850082,-411.7313822,0.00014767,2]
[338791923,1726915850091,-411.7313822,0.00014767,2]
[338791924,1726915850102,-253.8121629,0.00014767,2]
[338791925,1726915850111,-151.0,0.00014768,2]
[338791926,1726915850120,-151.0,0.00014768,2]
[338791927,1726915850129,-151.0,0.00014768,2]
[338791928,1726915850139,-189.690337,0.00014768,2]
[338791929,1726915850288,-151.0,0.00014768,2]
[338791930,1726915850297,-151.0,0.00014768,2]
[338791932,1726915850308,-151.752825,0.00014768,2]
[338791933,1726915850317,-2258.637503,0.00014768,2]
[338791935,1726915850328,-417.254682,0.00014768,2]
[338791937,1726915850337,-417.254682,0.00014768,2]
[338791939,1726915850347,-151.0,0.00014768,2]
[338791941,1726915850356,-151.0,0.00014769,2]
[338791943,1726915850365,-613.208238,0.00014769,2]
[338791945,1726915850374,-613.208238,0.00014769,2]
[338791947,1726915850383,-195.545,0.00014769,2]
[338791949,1726915850393,-195.545,0.00014769,2]
[338791951,1726915850403,-585.73566,0.00014769,2]
[338791953,1726915850413,-585.73566,0.00014769,2]
[338791955,1726915850423,-788.442493,0.00014769,2]
[338791957,1726915850433,-788.442493,0.00014769,2]
[338791959,1726915850442,-500.0,0.00014773,2]
[338791961,1726915850451,-227.74,0.00014784,2]
[338791963,1726915850461,-151.0,0.00014789,2]
[338791965,1726915850470,-33647.55473503,0.00014793,5]
[338791967,1726915850479,-500.0,0.00014793,2]
[338791969,1726915850488,-594.57,0.00014793,2]
[338791971,1726915850497,-500.0,0.00014793,2]
[338791973,1726915850507,-500.0,0.00014793,2]
[338791975,1726915850517,-16586.97,0.00014793,2]
[338791977,1726915850526,-381.29,0.00014793,2]
[338791979,1726915850535,-2430.39,0.00014793,2]
[338791981,1726915850544,-575.53,0.00014794,2]
[338791983,1726915850554,-500.0,0.00014794,2]
[338791985,1726915850563,-500.0,0.00014794,2]
[338791987,1726915850572,-500.0,0.00014794,2]
[338791989,1726915850582,-1038.25,0.00014794,2]
[338791991,1726915850591,-500.0,0.00014794,2]
[338791993,1726915850600,-500.0,0.00014794,2]
[338791995,1726915850609,-500.0,0.00014794,2]
[338791997,1726915850618,-500.0,0.00014794,2]
[338791999,1726915850627,-500.0,0.00014794,2]
[338792001,1726915850637,-500.0,0.00014794,2]
[338792003,1726915850646,-500.0,0.00014794,2]
[338792005,1726915850655,-500.0,0.00014794,2]
[338792007,1726915850664,-500.0,0.00014794,2]
[338792009,1726915850673,-500.0,0.00014794,2]
[338792011,1726915850682,-500.0,0.00014794,2]
[338792013,1726915850692,-500.0,0.00014794,2]
[338792015,1726915850701,-500.0,0.00014794,2]
[338792016,1726915850710,-500.0,0.00014794,2]
[338792018,1726915850720,-500.0,0.00014794,2]
[338792020,1726915850729,-500.0,0.00014794,2]
[338792022,1726915850739,-500.0,0.00014794,2]
[338792025,1726915850748,-500.0,0.00014794,2]
[338792026,1726915850759,-500.0,0.00014794,2]
[338792028,1726915850768,-500.0,0.00014794,2]
[338792030,1726915850777,-500.0,0.00014794,2]
[338792032,1726915850787,-500.0,0.00014794,2]
[338792034,1726915850796,-500.0,0.00014794,2]
[338792036,1726915850806,-500.0,0.00014794,2]
[338792038,1726915850815,-500.0,0.00014794,2]
[338792040,1726915850824,-419.66,0.00014794,2]
[338792042,1726915850834,-500.0,0.00014794,2]
[338792044,1726915850843,-500.0,0.00014794,2]
[338792046,1726915850852,-500.0,0.00014794,2]
[338792048,1726915850862,-500.0,0.00014794,2]
[338792050,1726915850873,-324.32,0.00014794,2]
[338792052,1726915850884,-500.0,0.00014794,2]
[338792054,1726915850893,-500.0,0.00014794,2]
[338792056,1726915850904,-500.0,0.00014794,2]
[338792058,1726915850914,-500.0,0.00014794,2]
[338792060,1726915850924,-209.65,0.00014794,2]
[338792062,1726915850933,-42277.58251741,0.00014795,5]
[338794286,1726915876977,3000.0,0.00013547,2]
[338795653,1726915891646,244.183453,0.00013699,2]
[338800770,1726916056508,162.397312,0.00011781,2]
[338800771,1726916082275,500.0,0.00012988,2]
[338800772,1726916414465,401.46,0.00010959,2]
[338800774,1726916446436,244.183453,0.00013699,2]
[338800775,1726916449968,599.82,0.00014014,2]
[338800776,1726916658705,162.397312,0.00011781,2]
[338800777,1726916801295,250.0,0.00013235,2]
[338800778,1726916838204,-202.83877894,0.00014136,2]
[338800779,1726916838229,-300.0,0.00014232,2]
[338800780,1726916838262,-300.0,0.00014232,2]
[338800781,1726916838288,-500.0,0.00014233,2]
[338800782,1726916838314,-545.02,0.00014233,2]
[338800783,1726916838338,-500.0,0.00014233,2]
[338800784,1726916838362,-500.0,0.00014233,2]
[338800785,1726916838387,-500.0,0.00014233,2]
[338800786,1726916838413,-500.0,0.00014233,2]
[338800787,1726916838438,-349.76,0.00014233,2]
[338800788,1726916838463,-15204.72,0.00014233,2]
[338800789,1726916838489,-2227.86,0.00014233,2]
[338800790,1726916838516,-389.42,0.00014233,2]
[338800791,1726916838541,-646.89,0.00014233,2]
[338800792,1726916838567,-484.52,0.00014233,2]
[338800793,1726916838592,-548.10149986,0.00014234,2]
[338800794,1726916838617,-201.8697212,0.00014234,2]
[338800795,1726916854936,4065.72,0.00014,2]
[338801209,1726917040295,-377.95465645,0.00014126,2]
[338801211,1726917040306,-242.63639196,0.00014136,2]
[338801213,1726917040317,-300.0,0.00014223,2]
[338801215,1726917040326,-500.0,0.00014223,2]
[338801217,1726917040337,-500.0,0.00014223,2]
[338801219,1726917040347,-10234.00684609,0.00014224,2]
[338801222,1726917040360,-25905.83531721,0.00014224,2]
[338801223,1726917040370,-29567.1030038,0.00014226,2]
[338801225,1726917040379,-500.0,0.00014233,2]
[338801247,1726917040583,-500.0,0.00014233,2]
[338801249,1726917040593,-546.38,0.00014233,2]
[338801251,1726917040602,-500.0,0.00014233,2]
[338801253,1726917040612,-500.0,0.00014233,2]
[338801255,1726917040621,-500.0,0.00014233,2]
[338801257,1726917040631,-581.72,0.00014233,2]
[338801259,1726917040641,-15064.02,0.00014233,2]
[338801261,1726917040651,-2199.94,0.00014233,2]
[338801263,1726917040660,-500.0,0.00014233,2]
[338801265,1726917040670,-298.1302788,0.00014234,2]
[338801267,1726917040679,-608.09068544,0.00014234,2]
[338801269,1726917040689,-527.57,0.00014234,2]
[338801271,1726917040699,-462.3874757,0.00014234,2]
[338801273,1726917040708,-500.0,0.00014234,2]